lending/lending_fUSD_20250819
["ID","MTS","AMOUNT","RATE_DAILY","PERIOD"]
[380258298,1755629342753,-1485.26,0.00023821,30]
[380258299,1755629342794,-1481.25,0.00023821,30]
[380258300,1755629342840,-400.0,0.00023821,30]
[380258301,1755629342883,-7829.02,0.00023821,30]
[380258302,1755629342922,-3080.38,0.00023821,30]
[380258303,1755629342960,-1106.61,0.00023821,30]
[380258304,1755629342999,-400.0,0.00023821,30]
[380258305,1755629343042,-400.0,0.00023821,30]
[380258306,1755629343085,-400.0,0.00023821,30]
[380258307,1755629343129,-1275.31,0.00023821,30]
[380258308,1755629343175,-2428.53,0.00023821,30]
[380258309,1755629343223,-2245.56,0.00023821,30]
[380258310,1755629343268,-400.0,0.00023821,30]
[380258311,1755629343315,-400.0,0.00023821,30]
[380258312,1755629343360,-400.0,0.00023821,30]
[380258313,1755629343412,-508.35,0.00023821,30]
[380258314,1755629343457,-1819.77,0.00023821,30]
[380258315,1755629343501,-400.0,0.00023821,30]
[380258316,1755629343545,-1393.08,0.00023821,30]
[380258317,1755629343591,-750.82,0.00023821,30]
[380258318,1755629343638,-400.0,0.00023821,30]
[380258319,1755629343685,-849.04,0.00023821,30]
[380258320,1755629343731,-2808.37,0.00023821,30]
[380258321,1755629343775,-1073.77,0.00023821,30]
[380258322,1755629343823,-3310.66,0.00023821,30]
[380258323,1755629343866,-429.04,0.00023821,30]
[380258324,1755629343908,-2806.48,0.00023821,30]
[380258325,1755629343953,-3632.79,0.00023821,30]
[380258326,1755629343996,-400.0,0.00023821,30]
[380258327,1755629344040,-411.16,0.00023821,30]
[380258328,1755629344083,-2238.21,0.00023821,30]
[380258329,1755629344126,-400.0,0.00023821,30]
[380258330,1755629344171,-1263.11,0.00023821,30]
[380258331,1755629344218,-1826.5,0.00023821,30]
[380258332,1755629344266,-1860.35,0.00023821,30]
[380258333,1755629344311,-1169.66,0.00023821,30]
[380258334,1755629344355,-4823.93,0.00023821,30]
[380258335,1755629344399,-400.0,0.00023821,30]
[380258336,1755629344479,-400.0,0.00023821,30]
[380258337,1755629344526,-400.0,0.00023821,30]
[380258338,1755629344573,-6274.25,0.00023821,30]
[380258339,1755629344618,-803.9,0.00023821,30]
[380258340,1755629344665,-406.36,0.00023821,30]
[380258341,1755629344713,-4094.36,0.00023821,30]
[380258342,1755629344757,-457.75,0.00023821,30]
[380258343,1755629344801,-2361.69,0.00023821,30]
[380258344,1755629344845,-400.0,0.00023821,30]
[380258345,1755629344889,-2112.13,0.00023821,30]
[380258346,1755629345219,-1003.38,0.00023821,30]
[380258347,1755629345264,-400.0,0.00023821,30]
[380258348,1755629345309,-796.02,0.00023821,30]
[380258349,1755629345353,-897.52,0.00023821,30]
[380258350,1755629345398,-400.0,0.00023821,30]
[380258351,1755629345444,-2177.12,0.00023821,30]
[380258352,1755629345489,-437.94,0.00023821,30]
[380258353,1755629345533,-3765.87,0.00023821,30]
[380258354,1755629345576,-1519.99,0.00023821,30]
[380258355,1755629345621,-1383.47,0.00023821,30]
[380258356,1755629345665,-985.17,0.00023821,30]
[380258357,1755629345710,-400.0,0.00023821,30]
[380258358,1755629345754,-400.0,0.00023821,30]
[380258359,1755629345798,-924.55,0.00023821,30]
[380258360,1755629345841,-923.52,0.00023821,30]
[380258361,1755629345893,-1598.61,0.00023821,30]
[380258362,1755629345935,-400.0,0.00023821,30]
[380258363,1755629345977,-3035.89,0.00023821,30]
[380258364,1755629346020,-2757.16,0.00023821,30]
[380258365,1755629346066,-400.0,0.00023821,30]
[380258366,1755629346114,-400.0,0.00023821,30]
[380258367,1755629346160,-572.21,0.00023821,30]
[380258368,1755629346205,-667.94,0.00023821,30]
[380258369,1755629346252,-610.47,0.00023821,30]
[380258370,1755629346295,-400.0,0.00023821,30]
[380258371,1755629346341,-400.0,0.00023821,30]
[380258372,1755629346387,-2555.96,0.00023821,30]
[380258373,1755629346430,-400.0,0.00023821,30]
[380258374,1755629346471,-400.0,0.00023821,30]
[380258375,1755629346511,-3167.42,0.00023821,30]
[380258376,1755629346553,-3316.1,0.00023821,30]
[380258377,1755629346598,-4009.21,0.00023821,30]
[380258378,1755629346642,-2712.35,0.00023821,30]
[380258379,1755629346689,-436.93,0.00023821,30]
[380258380,1755629346734,-400.0,0.00023821,30]
[380258381,1755629346780,-16553.6,0.00023821,30]
[380258382,1755629346822,-2042.46,0.00023821,30]
[380258383,1755629346863,-3616.04,0.00023821,30]
[380258384,1755629346904,-2880.19,0.00023821,30]
[380258385,1755629346947,-426.8,0.00023821,30]
[380258386,1755629346989,-1114.17,0.00023821,30]
[380258387,1755629347031,-400.0,0.00023821,30]
[380258388,1755629347073,-400.0,0.00023821,30]
[380258389,1755629347115,-400.0,0.00023821,30]
[380258390,1755629347158,-400.0,0.00023821,30]
[380258391,1755629347200,-1107.03,0.00023821,30]
[380258392,1755629347248,-837.96,0.00023821,30]
[380258393,1755629347295,-4211.89,0.00023821,30]
[380258394,1755629347339,-2306.37,0.00023821,30]
[380258395,1755629347382,-2999.58,0.00023821,30]
[380258396,1755629347424,-4672.86,0.00023821,30]
[380258397,1755629347466,-400.0,0.00023821,30]
[380258398,1755629347505,-4024.6,0.00023821,30]
[380258399,1755629347546,-414.45517063,0.00023821,30]
[380258400,1755629347589,-9755.55,0.00023821,30]
[380258401,1755629347631,-400.0,0.00023821,30]
[380258402,1755629347671,-673.87,0.00023821,30]
[380258403,1755629347711,-2406.12,0.00023821,30]
[380258404,1755629347756,-400.0,0.00023821,30]
[380258405,1755629347802,-1884.2,0.00023821,30]
[380258406,1755629347846,-2024.98,0.00023821,30]
[380258407,1755629347890,-400.0,0.00023821,30]
[380258408,1755629347931,-1299.7,0.00023821,30]
[380258409,1755629347972,-2196.77,0.00023821,30]
[380258410,1755629348016,-677.84,0.00023821,30]
[380258411,1755629348057,-404.78,0.00023821,30]
[380258412,1755629348098,-2622.74,0.00023821,30]
[380258413,1755629348140,-2487.77,0.00023821,30]
[380258414,1755629348183,-400.0,0.00023821,30]
[380258415,1755629348231,-1106.6,0.00023821,30]
[380258416,1755629348276,-595.97,0.00023821,30]
[380258417,1755629348321,-676.66,0.00023821,30]
[380258418,1755629348365,-400.0,0.00023821,30]
[380258419,1755629348408,-425.67,0.00023821,30]
[380258420,1755629348450,-472.39,0.00023821,30]
[380258421,1755629348491,-4203.55,0.00023821,30]
[380258422,1755629348534,-400.0,0.00023821,30]
[380258423,1755629348574,-585.0,0.00023821,30]
[380258424,1755629348620,-1971.08,0.00023821,30]
[380258425,1755629348664,-2820.21,0.00023821,30]
[380258426,1755629348708,-400.0,0.00023821,30]
[380258427,1755629348751,-1024.24,0.00023821,30]
[380258428,1755629348792,-1294.68,0.00023821,30]
[380258429,1755629348834,-400.0,0.00023821,30]
[380258430,1755629348877,-3949.14,0.00023821,30]
[380258431,1755629348919,-465.63,0.00023821,30]
[380258432,1755629348959,-16565.532356,0.00023821,30]
[380258433,1755629349000,-2512.69,0.00023821,30]
[380258434,1755629349041,-576.04,0.00023821,30]
[380258435,1755629349081,-400.0,0.00023821,30]
[380258436,1755629349123,-629.38,0.00023821,30]
[380258437,1755629349164,-2439.33,0.00023821,30]
[380258438,1755629349207,-2966.76,0.00023821,30]
[380258439,1755629349622,-1223.1,0.00023821,30]
[380258440,1755629349666,-3255.31,0.00023821,30]
[380258441,1755629349710,-3353.91,0.00023821,30]
[380258442,1755629349755,-3454.52,0.00023821,30]
[380258443,1755629349799,-400.0,0.00023821,30]
[380258444,1755629349840,-986.14,0.00023821,30]
[380258445,1755629349883,-2287.36,0.00023821,30]
[380258446,1755629349926,-676.09,0.00023821,30]
[380258447,1755629349968,-3237.38,0.00023821,30]
[380258448,1755629350011,-2147.13,0.00023821,30]
[380258449,1755629350051,-1621.71,0.00023821,30]
[380258450,1755629350090,-400.0,0.00023821,30]
[380258451,1755629350132,-400.0,0.00023821,30]
[380258452,1755629350174,-4405.72,0.00023821,30]
[380258453,1755629350218,-575.38,0.00023821,30]
[380258454,1755629350261,-3618.4,0.00023821,30]
[380258455,1755629350303,-2448.43,0.00023821,30]
[380258456,1755629350346,-1574.55,0.00023821,30]
[380258457,1755629350391,-400.0,0.00023821,30]
[380258458,1755629350433,-400.0,0.00023821,30]
[380258459,1755629350476,-2556.34,0.00023821,30]
[380258460,1755629350517,-4742.47,0.00023821,30]
[380258461,1755629350558,-4618.53,0.00023821,30]
[380258462,1755629350598,-2446.9,0.00023821,30]
[380258463,1755629350640,-590.83,0.00023821,30]
[380258464,1755629350681,-2283.21,0.00023821,30]
[380258465,1755629350723,-1666.38,0.00023821,30]
[380258466,1755629350765,-1917.1,0.00023821,30]
[380258467,1755629350806,-4566.06,0.00023821,30]
[380258468,1755629350847,-400.0,0.00023821,30]
[380258469,1755629350889,-2488.42,0.00023821,30]
[380258470,1755629350930,-400.0,0.00023821,30]
[380258471,1755629350971,-174.08334465,0.00023821,30]
[380258472,1755629351011,-2600.96,0.00023821,30]
[380258473,1755629351054,-1241.13,0.00023821,30]
[380258474,1755629351100,-2614.06,0.00023821,30]
[380258475,1755629351144,-2454.51,0.00023821,30]
[380258476,1755629351187,-2992.32,0.00023821,30]
[380258477,1755629351232,-2882.33,0.00023821,30]
[380258478,1755629351278,-2174.7,0.00023821,30]
[380258479,1755629351320,-3320.35,0.00023821,30]
[380258480,1755629351362,-3258.07,0.00023821,30]
[380258481,1755629351407,-482.39,0.00023821,30]
[380258482,1755629351448,-2570.46,0.00023821,30]
[380258483,1755629351486,-3289.56,0.00023821,30]
[380258484,1755629351525,-1183.82,0.00023821,30]
[380258485,1755629351567,-3015.43,0.00023821,30]
[380258486,1755629351610,-5931.71,0.00023821,30]
[380258487,1755629351651,-2155.5,0.00023821,30]
[380258488,1755629351692,-1264.59,0.00023821,30]
[380258489,1755629351735,-1001.1,0.00023821,30]
[380258490,1755629351778,-400.0,0.00023821,30]
[380258491,1755629351822,-1745.15,0.00023821,30]
[380258492,1755629351865,-3379.2,0.00023821,30]
[380258493,1755629351908,-1117.83,0.00023821,30]
[380258494,1755629351946,-795.22,0.00023821,30]
[380258495,1755629351986,-1338.87,0.00023821,30]
[380258496,1755629352025,-587.48,0.00023821,30]
[380258497,1755629352067,-2323.63,0.00023821,30]
[380258498,1755629352109,-400.0,0.00023821,30]
[380258499,1755629352151,-400.0,0.00023821,30]
[380258500,1755629352194,-2517.35,0.00023821,30]
[380258501,1755629352242,-2662.98,0.00023821,30]
[380258502,1755629352290,-1544.99,0.00023821,30]
[380258503,1755629352334,-646.84,0.00023821,30]
[380258504,1755629352375,-400.0,0.00023821,30]
[380258505,1755629352417,-764.98,0.00023821,30]
[380258506,1755629352458,-728.66,0.00023821,30]
[380258507,1755629352499,-1035.87,0.00023821,30]
[380258508,1755629352541,-2531.47,0.00023821,30]
[380258509,1755629352585,-3465.07,0.00023821,30]
[380258510,1755629352625,-776.93,0.00023821,30]
[380258511,1755629352668,-400.0,0.00023821,30]
[380258512,1755629352707,-2693.83,0.00023821,30]
[380258513,1755629352750,-6156.69,0.00023821,30]
[380258514,1755629352793,-2225.65,0.00023821,30]
[380258515,1755629352922,-516.32,0.00023821,30]
[380258516,1755629352965,-463.45,0.00023821,30]
[380258517,1755629353007,-2683.6,0.00023821,30]
[380258518,1755629353057,-3126.48,0.00023821,30]
[380258519,1755629353102,-769.81,0.00023821,30]
[380258520,1755629353146,-400.0,0.00023821,30]
[380258521,1755629353189,-400.0,0.00023821,30]
[380258522,1755629353233,-400.0,0.00023821,30]
[380258523,1755629353276,-400.0,0.00023821,30]
[380258524,1755629353323,-366.48591621,0.00023821,30]
[380258525,1755629353367,-400.0,0.00023821,30]
[380258526,1755629353411,-1875.41,0.00023821,30]
[380258527,1755629353452,-810.62,0.00023821,30]
[380258528,1755629353492,-656.82,0.00023821,30]
[380258529,1755629353536,-2010.66,0.00023821,30]
[380258530,1755629353580,-3273.57,0.00023821,30]
[380258531,1755629353623,-4857.3,0.00023821,30]
[380258532,1755629353666,-400.0,0.00023821,30]
[380258533,1755629353706,-432.79,0.00023821,30]
[380258534,1755629353748,-724.21,0.00023821,30]
[380258535,1755629353789,-400.0,0.00023821,30]
[380258536,1755629353831,-1201.82,0.00023821,30]
[380258537,1755629353873,-552.27,0.00023821,30]
[380258538,1755629353913,-2234.63,0.00023821,30]
[380258539,1755629353951,-400.0,0.00023821,30]
[380258540,1755629353988,-3387.39,0.00023821,30]
[380258541,1755629354028,-1744.1,0.00023821,30]
[380258542,1755629354069,-4321.34,0.00023821,30]
[380258543,1755629354109,-657.09,0.00023821,30]
[380258544,1755629354149,-3242.02,0.00023821,30]
[380258545,1755629354190,-3031.42,0.00023821,30]
[380258546,1755629354236,-5360.4,0.00023821,30]
[380258547,1755629354281,-4506.15,0.00023821,30]
[380258548,1755629354328,-400.0,0.00023821,30]
[380258549,1755629354377,-622.38,0.00023821,30]
[380258550,1755629354418,-2268.72,0.00023821,30]
[380258551,1755629354463,-400.0,0.00023821,30]
[380258552,1755629354509,-2569.35,0.00023821,30]
[380258553,1755629354549,-863.0,0.00023822,30]
[380258554,1755629354591,-400.0,0.00024095,30]
[380258555,1755629354632,-400.0,0.00024095,30]
[380258556,1755629354672,-400.0,0.00024095,30]
[380258557,1755629354714,-400.0,0.00024095,30]
[380258558,1755629354756,-400.0,0.00024095,30]
[380258559,1755629354796,-400.0,0.00024095,30]
[380258560,1755629354835,-400.0,0.00024095,30]
[380258561,1755629354873,-400.0,0.00024095,30]
[380258562,1755629354918,-400.0,0.00024095,30]
[380258563,1755629354956,-400.0,0.00024095,30]
[380258564,1755629354993,-400.0,0.00024095,30]
[380258565,1755629355035,-400.0,0.00024095,30]
[380258566,1755629355077,-400.0,0.00024095,30]
[380258567,1755629355119,-400.0,0.00024095,30]
[380258568,1755629355161,-400.0,0.00024095,30]
[380258569,1755629355204,-319.35085457,0.00024095,30]
[380258570,1755629355250,-928.42,0.00024095,30]
[380258571,1755629355297,-400.0,0.00024095,30]
[380258572,1755629355342,-459.29,0.00024095,30]
[380258573,1755629355387,-400.0,0.00024095,30]
[380258574,1755629355435,-400.0,0.00024095,30]
[380258575,1755629355478,-1462.97,0.00024095,30]
[380258576,1755629355522,-400.0,0.00024095,30]
[380258577,1755629355564,-400.0,0.00024095,30]
[380258578,1755629355605,-400.0,0.00024095,30]
[380258579,1755629355646,-400.0,0.00024095,30]
[380258580,1755629355687,-400.0,0.00024095,30]
[380258581,1755629355730,-2521.52,0.00024095,30]
[380258582,1755629355773,-1068.58,0.00024095,30]
[380258583,1755629355814,-400.0,0.00024095,30]
[380258584,1755629355855,-441.51,0.00024095,30]
[380258585,1755629355897,-423.67,0.00024095,30]
[380258586,1755629355938,-400.0,0.00024095,30]
[380258587,1755629355977,-400.0,0.00024095,30]
[380258588,1755629356017,-438.15,0.00024095,30]
[380258589,1755629356060,-400.0,0.00024095,30]
[380258590,1755629356104,-435.75,0.00024095,30]
[380258591,1755629356148,-400.0,0.00024095,30]
[380258592,1755629356191,-417.8,0.00024095,30]
[380258593,1755629356233,-400.0,0.00024095,30]
[380258594,1755629356276,-400.0,0.00024095,30]
[380258595,1755629356317,-400.0,0.00024095,30]
[380258596,1755629356359,-400.0,0.00024095,30]
[380258597,1755629356401,-639.82,0.00024095,30]
[380258598,1755629356446,-409.67,0.00024095,30]
[380258599,1755629356489,-400.0,0.00024095,30]
[380258600,1755629356533,-250.0,0.00024095,30]
[380258601,1755629356576,-400.0,0.00024095,30]
[380258602,1755629356618,-934.06,0.00024095,30]
[380258603,1755629356663,-950.38,0.00024095,30]
[380258604,1755629356706,-473.62506521,0.00024095,30]
[380258605,1755629356750,-523.61,0.00024095,30]
[380258606,1755629356793,-602.65,0.00024095,30]
[380258607,1755629356836,-400.0,0.00024095,30]
[380258608,1755629356879,-400.0,0.00024095,30]
[380258609,1755629356923,-400.0,0.00024095,30]
[380258610,1755629356971,-400.0,0.00024095,30]
[380258611,1755629357016,-1703.34,0.00024095,30]
[380258612,1755629357061,-400.0,0.00024095,30]
[380258613,1755629357106,-2230.59,0.00024095,30]
[380258614,1755629357157,-2231.92,0.00024095,30]
[380258615,1755629357208,-400.0,0.00024095,30]
[380258616,1755629357260,-400.0,0.00024095,30]
[380258617,1755629357305,-1197.44,0.00024095,30]
[380258618,1755629357352,-400.0,0.00024095,30]
[380258619,1755629357399,-400.0,0.00024095,30]
[380258620,1755629357447,-418.88,0.00024095,30]
[380258621,1755629357490,-631.62,0.00024095,30]
[380258622,1755629357530,-400.0,0.00024095,30]
[380258623,1755629357570,-958.06,0.00024095,30]
[380258624,1755629357613,-839.44,0.00024095,30]
[380258625,1755629357656,-400.0,0.00024095,30]
[380258626,1755629357698,-400.0,0.00024095,30]
[380258627,1755629357742,-400.0,0.00024095,30]
[380258628,1755629357786,-400.0,0.00024095,30]
[380258629,1755629357831,-400.0,0.00024095,30]
[380258630,1755629357874,-169.12430481,0.00024095,30]
[380258631,1755629357915,-2272.08,0.00024095,30]
[380258632,1755629358118,-400.0,0.00024095,30]
[380258633,1755629358166,-753.97,0.00024095,30]
[380258634,1755629358210,-958.91,0.00024095,30]
[380258635,1755629358261,-487.74,0.00024095,30]
[380258636,1755629358306,-400.0,0.00024095,30]
[380258637,1755629358349,-400.0,0.00024095,30]
[380258638,1755629358391,-1074.76,0.00024095,30]
[380258639,1755629358435,-400.0,0.00024095,30]
[380258640,1755629358477,-965.63,0.00024095,30]
[380258641,1755629358519,-1587.36,0.00024095,30]
[380258642,1755629358560,-519.21,0.00024095,30]
[380258643,1755629358601,-400.0,0.00024095,30]
[380258645,1755629358644,-402.4,0.00024095,30]
[380258646,1755629358686,-398.30252692,0.00024095,30]
[380258647,1755629358728,-1175.49,0.00024095,30]
[380258648,1755629358770,-400.0,0.00024095,30]
[380258649,1755629358813,-400.0,0.00024095,30]
[380258650,1755629358854,-889.98,0.00024095,30]
[380258651,1755629358895,-1326.08,0.00024095,30]
[380258652,1755629358936,-400.0,0.00024095,30]
[380258653,1755629358981,-1985.51,0.00024095,30]
[380258654,1755629359023,-400.0,0.00024095,30]
[380258655,1755629359069,-517.06,0.00024095,30]
[380258656,1755629359115,-400.0,0.00024095,30]
[380258657,1755629359159,-1152.19,0.00024095,30]
[380258658,1755629359207,-2164.45,0.00024095,30]
[380258659,1755629359251,-1488.41,0.00024095,30]
[380258660,1755629359294,-400.0,0.00024095,30]
[380258661,1755629359340,-400.0,0.00024095,30]
[380258662,1755629359384,-1489.72,0.00024095,30]
[380258663,1755629359430,-893.93,0.00024095,30]
[380258664,1755629359482,-1715.57,0.00024095,30]
[380258665,1755629359533,-400.0,0.00024095,30]
[380258666,1755629359589,-400.0,0.00024095,30]
[380258667,1755629359637,-2955.6,0.00024095,30]
[380258668,1755629359686,-400.0,0.00024095,30]
[380258669,1755629359738,-400.0,0.00024095,30]
[380258670,1755629359784,-400.0,0.00024095,30]
[380258671,1755629359836,-552.81,0.00024095,30]
[380258672,1755629359881,-843.59,0.00024095,30]
[380258673,1755629359925,-588.75,0.00024095,30]
[380258674,1755629359967,-2053.89,0.00024095,30]
[380258675,1755629360014,-526.99,0.00024095,30]
[380258676,1755629360059,-400.0,0.00024095,30]
[380258677,1755629360105,-1005.69,0.00024095,30]
[380258678,1755629360148,-2030.2,0.00024095,30]
[380258679,1755629360190,-400.0,0.00024095,30]
[380258680,1755629360233,-1146.29,0.00024095,30]
[380258681,1755629360276,-400.0,0.00024095,30]
[380258682,1755629360321,-400.0,0.00024095,30]
[380258683,1755629360367,-400.0,0.00024095,30]
[380258684,1755629360414,-1058.6,0.00024095,30]
[380258685,1755629360457,-2358.52,0.00024095,30]
[380258686,1755629360498,-1273.57,0.00024095,30]
[380258687,1755629360539,-505.13,0.00024095,30]
[380258688,1755629360583,-1267.45,0.00024095,30]
[380258689,1755629360622,-1215.65,0.00024095,30]
[380258690,1755629360660,-1218.38,0.00024095,30]
[380258691,1755629360701,-400.0,0.00024095,30]
[380258692,1755629360744,-400.0,0.00024095,30]
[380258693,1755629360787,-443.21,0.00024095,30]
[380258694,1755629360831,-418.85,0.00024095,30]
[380258695,1755629360871,-400.0,0.00024095,30]
[380258696,1755629360911,-615.38,0.00024095,30]
[380258697,1755629360951,-400.0,0.00024095,30]
[380258698,1755629360991,-670.98,0.00024095,30]
[380258699,1755629361031,-400.0,0.00024095,30]
[380258700,1755629361072,-3671.25,0.00024095,30]
[380258701,1755629361118,-252.0402813,0.00024095,30]
[380258702,1755629361164,-850.82,0.00024095,30]
[380258703,1755629361209,-400.0,0.00024095,30]
[380258704,1755629361257,-765.04,0.00024095,30]
[380258705,1755629361308,-443.1,0.00024095,30]
[380258706,1755629361354,-526.61,0.00024095,30]
[380258707,1755629361402,-437.21,0.00024095,30]
[380258708,1755629361446,-406.86,0.00024095,30]
[380258709,1755629361487,-636.19,0.00024095,30]
[380258710,1755629361528,-400.0,0.00024095,30]
[380258711,1755629361570,-400.0,0.00024095,30]
[380258712,1755629361613,-405.88082422,0.00024095,30]
[380258713,1755629361654,-2728.43,0.00024095,30]
[380258714,1755629361693,-400.0,0.00024095,30]
[380258715,1755629361735,-849.93,0.00024095,30]
[380258716,1755629361775,-1555.8,0.00024095,30]
[380258717,1755629361814,-2348.96,0.00024095,30]
[380258718,1755629361854,-1152.96,0.00024095,30]
[380258719,1755629361894,-1870.91,0.00024095,30]
[380258720,1755629361932,-2094.84,0.00024095,30]
[380258721,1755629361970,-675.96,0.00024095,30]
[380258722,1755629362009,-400.0,0.00024095,30]
[380258723,1755629362054,-400.0,0.00024095,30]
[380258724,1755629362098,-1168.52,0.00024095,30]
[380258725,1755629362143,-2498.74,0.00024095,30]
[380258726,1755629362649,-285.32780267,0.00024095,30]
[380258727,1755629362698,-400.0,0.00024095,30]
[380258728,1755629362743,-400.0,0.00024095,30]
[380258729,1755629362786,-1267.71,0.00024095,30]
[380258730,1755629362830,-1054.41,0.00024095,30]
[380258731,1755629362872,-400.0,0.00024095,30]
[380258732,1755629362912,-400.0,0.00024095,30]
[380258733,1755629362951,-400.0,0.00024095,30]
[380258734,1755629362991,-703.87,0.00024095,30]
[380258735,1755629363033,-2695.11,0.00024095,30]
[380258736,1755629363073,-400.0,0.00024095,30]
[380258737,1755629363112,-400.0,0.00024095,30]
[380258738,1755629363153,-400.0,0.00024095,30]
[380258739,1755629363193,-457.87,0.00024095,30]
[380258740,1755629363235,-400.0,0.00024095,30]
[380258741,1755629363275,-1077.59,0.00024095,30]
[380258742,1755629363314,-528.69000544,0.00024095,30]
[380258743,1755629363357,-400.0,0.00024095,30]
[380258744,1755629363397,-803.76,0.00024095,30]
[380258745,1755629363440,-562.14,0.00024095,30]
[380258746,1755629363483,-400.0,0.00024095,30]
[380258747,1755629363527,-1935.91,0.00024095,30]
[380258748,1755629363572,-521.92,0.00024095,30]
[380258749,1755629363616,-432.86,0.00024095,30]
[380258750,1755629363659,-400.0,0.00024095,30]
[380258751,1755629363701,-608.59,0.00024095,30]
[380258752,1755629363745,-2166.45,0.00024095,30]
[380258753,1755629363791,-479.87,0.00024095,30]
[380258754,1755629363837,-589.11,0.00024095,30]
[380258755,1755629363881,-2577.22,0.00024095,30]
[380258756,1755629363923,-400.0,0.00024095,30]
[380258757,1755629363965,-400.0,0.00024095,30]
[380258758,1755629364004,-400.0,0.00024095,30]
[380258759,1755629364047,-400.0,0.00024095,30]
[380258760,1755629364092,-412.32,0.00024095,30]
[380258761,1755629364135,-2726.08,0.00024095,30]
[380258762,1755629364179,-481.92,0.00024095,30]
[380258763,1755629364224,-890.73,0.00024095,30]
[380258764,1755629364270,-400.0,0.00024095,30]
[380258765,1755629364313,-3831.53,0.00024095,30]
[380258766,1755629364355,-2249.93,0.00024095,30]
[380258767,1755629364396,-901.47,0.00024095,30]
[380258768,1755629364436,-400.0,0.00024095,30]
[380258769,1755629364476,-1232.22,0.00024095,30]
[380258770,1755629364516,-620.09,0.00024095,30]
[380258771,1755629364559,-1076.14,0.00024095,30]
[380258772,1755629364599,-400.0,0.00024095,30]
[380258773,1755629364640,-1476.73,0.00024095,30]
[380258774,1755629364688,-2866.23,0.00024095,30]
[380258775,1755629364730,-2226.33,0.00024095,30]
[380258776,1755629364771,-516.16,0.00024095,30]
[380258777,1755629364814,-738.05,0.00024095,30]
[380258778,1755629364859,-1045.72,0.00024095,30]
[380258779,1755629364903,-1877.74,0.00024095,30]
[380258780,1755629364945,-400.0,0.00024095,30]
[380258781,1755629364988,-1016.22,0.00024095,30]
[380258782,1755629365029,-400.0,0.00024095,30]
[380258783,1755629365071,-778.49,0.00024095,30]
[380258784,1755629365113,-2691.17,0.00024095,30]
[380258785,1755629365156,-524.11,0.00024095,30]
[380258786,1755629365201,-2324.34,0.00024095,30]
[380258787,1755629365246,-927.54,0.00024095,30]
[380258788,1755629365294,-400.0,0.00024095,30]
[380258789,1755629365345,-400.0,0.00024095,30]
[380258790,1755629365391,-400.0,0.00024095,30]
[380258791,1755629365433,-400.0,0.00024095,30]
[380258792,1755629365482,-400.0,0.00024095,30]
[380258793,1755629365525,-400.0,0.00024095,30]
[380258794,1755629365569,-473.63765275,0.00024095,30]
[380258795,1755629365612,-400.0,0.00024095,30]
[380258796,1755629365655,-971.34,0.00024095,30]
[380258797,1755629365697,-414.97,0.00024095,30]
[380258798,1755629365738,-400.0,0.00024095,30]